fUSD/lending_fUSD_20260108
["ID","MTS","AMOUNT","RATE_DAILY","PERIOD"]
[400900030,1767858157750,1100.0,0.00010118,2]
[400900031,1767858162517,1100.0,0.00010118,2]
[400900032,1767858167384,1100.0,0.00010118,2]
[400900033,1767858172282,1100.0,0.00010118,2]
[400900035,1767858176704,280.58,6.32e-05,2]
[400900036,1767858176895,280.58,6.64e-05,2]
[400900037,1767858177028,1100.0,0.00010118,2]
[400900038,1767858177126,280.58,6.96e-05,2]
[400900039,1767858177294,280.58,7.279e-05,2]
[400900040,1767858178560,280.58,7.599e-05,2]
[400900041,1767858178643,280.58,7.919e-05,2]
[400900042,1767858178732,280.58,8.238e-05,2]
[400900043,1767858178831,280.58,8.558e-05,2]
[400900044,1767858178909,280.58,8.877e-05,2]
[400900045,1767858178991,280.58,9.197e-05,2]
[400900046,1767858179069,280.58,9.517e-05,2]
[400900047,1767858179154,280.58,9.836e-05,2]
[400900048,1767858179236,280.58,0.00010156,2]
[400900049,1767858179318,280.58,0.00010475,2]
[400900050,1767858179444,265.3465646,0.00010795,2]
[400900051,1767858179514,15.2334354,0.00010795,2]
[400900052,1767858179700,280.58,0.00011115,2]
[400900053,1767858179904,280.58,0.00011434,2]
[400900054,1767858180106,280.58,0.00011754,2]
[400900055,1767858181907,814.9165646,0.00010118,2]
[400900056,1767858181965,286.80704167,0.00010118,2]
[400900057,1767858201117,3903.13,0.00032877,120]
[400900058,1767858218479,3903.0,0.00032877,120]
[400900059,1767858230239,-280.58,0.00012074,2]
[400900060,1767858230306,-152.99164094,0.00012129,2]
[400900061,1767858230389,-195.0,0.00012151,2]
[400900062,1767858230458,-195.0,0.00012198,2]
[400900063,1767858230533,-300.0,0.00012228,2]
[400900064,1767858230600,-1200.0,0.00012228,2]
[400900065,1767858230679,-500.0,0.00012228,2]
[400900066,1767858230745,-505.97908823,0.00012228,2]
[400900067,1767858230806,-388.19462878,0.00012228,2]
[400900068,1767858236243,-3115.21350332,0.00012229,2]
[400900069,1767858236339,-10000.01,0.00012229,2]
[400900070,1767858236570,-10000.01,0.00012229,2]
[400900071,1767858236785,-10000.01,0.00012229,2]
[400900072,1767858236976,-10000.01,0.00012229,2]
[400900073,1767858237184,-10000.01,0.00012229,2]
[400900074,1767858237393,-10000.01,0.00012229,2]
[400900075,1767858237578,-10000.01,0.00012229,2]
[400900076,1767858237792,-10000.01,0.00012229,2]
[400900077,1767858242353,-300.0,0.00012228,2]
[400900078,1767858242480,-9400.01,0.00012229,2]
[400900079,1767858251585,-3966.3234,0.00012129,2]
[400900080,1767858254939,2067.3632,0.00012129,2]
[400900081,1767858254998,3966.3234,0.00012129,2]
[400900082,1767858261195,2500.0,0.00012129,2]
[400900083,1767858267820,155.16426952,0.00012129,2]
[400900084,1767858277312,3378.52233048,0.00012129,2]
[400900085,1767858277372,10000.01,0.00012129,2]
[400900086,1767858277428,1196.60589954,0.00012129,2]
[400900087,1767858294552,500.0,0.00012228,2]
[400900088,1767858294629,306.54993587,0.00012228,2]
[400900089,1767858294708,500.0,0.00012228,2]
[400900090,1767858294781,363.47009692,0.00012228,2]
[400900091,1767858294863,500.0,0.00012228,2]
[400900092,1767858294948,500.0,0.00012228,2]
[400900093,1767858295027,500.0,0.00012228,2]
[400900094,1767858295108,500.0,0.00012228,2]
[400900095,1767858295192,500.0,0.00012228,2]
[400900096,1767858295274,500.0,0.00012228,2]
[400900097,1767858295363,500.0,0.00012228,2]
[400900098,1767858295450,500.0,0.00012228,2]
[400900099,1767858295537,500.0,0.00012228,2]
[400900100,1767858295632,500.0,0.00012228,2]
[400900101,1767858295720,500.0,0.00012228,2]
[400900102,1767858296184,500.0,0.00012228,2]
[400900103,1767858296272,500.0,0.00012228,2]
[400900104,1767858296366,500.0,0.00012228,2]
[400900105,1767858296460,307.5541117,0.00012228,2]
[400900106,1767858296557,500.0,0.00012228,2]
[400900107,1767858296653,500.0,0.00012228,2]
[400900108,1767858296735,22.43585551,0.00012228,2]
[400900109,1767858296796,218.02679388,0.00012228,2]
[400900110,1767858301385,1200.0,0.00012228,2]
[400900111,1767858301506,300.0,0.00012228,2]
[400900112,1767858302161,150.0,0.00012228,2]
[400900115,1767858327671,224.17982995,0.00012129,2]
[400900116,1767858335851,1199.02494906,0.00012129,2]
[400900117,1767858352958,194.76545046,0.00012135,2]
[400900118,1767858354623,6514.01297665,0.00012129,2]
[400900119,1767858354690,9237.67575704,0.00012129,2]
[400900120,1767858361482,300.0,0.00012228,2]
[400900121,1767858367544,2585.3429,0.00012129,2]
[400900122,1767858380015,500.0,0.0003,120]
[400900123,1767858380110,1000.0,0.00012228,2]
[400900125,1767858391111,500.0,0.00012228,2]
[400900126,1767858391203,500.0,0.00012228,2]
[400900127,1767858391306,500.0,0.00012228,2]
[400900128,1767858391400,500.0,0.00012228,2]
[400900129,1767858391498,507.98158534,0.00012228,2]
[400900130,1767858400808,500.0,0.00012228,2]
[400900131,1767858400900,500.0,0.00012228,2]
[400900132,1767858415704,500.0,0.00012228,2]
[400900133,1767858415811,500.0,0.00012228,2]
[400900134,1767858416520,500.0,0.00012228,2]
[400900135,1767858416681,300.0,0.00012228,2]
[400900136,1767858416842,806.68551466,0.00012129,2]
[400900137,1767858416911,1693.31448534,0.00012129,2]
[400900139,1767858439432,4187.68,0.00011579,2]
[400900140,1767858464089,755.75,0.00011544,2]
[400900141,1767858468223,-250.37623941,0.00012129,2]
[400900142,1767858468299,-1002.56468536,0.00012228,2]
[400900143,1767858468383,-500.0,0.00012228,2]
[400900144,1767858468466,-150.0,0.00012228,2]
[400900145,1767858468568,-500.0,0.00012228,2]
[400900146,1767858468657,-500.0,0.00012228,2]
[400900147,1767858468742,-500.0,0.00012228,2]
[400900148,1767858468826,-500.0,0.00012228,2]
[400900149,1767858468908,-500.0,0.00012228,2]
[400900150,1767858468990,-500.0,0.00012228,2]
[400900151,1767858470637,-500.0,0.00012228,2]
[400900152,1767858470716,-300.0,0.00012228,2]
[400900153,1767858470792,-500.0,0.00012228,2]
[400900154,1767858470859,-626.22881488,0.00012229,2]
[400900155,1767858470927,-151.0,0.00012229,2]
[400900156,1767858470999,-151.0,0.00012229,2]
[400900157,1767858471078,-151.0,0.00012229,2]
[400900158,1767858471150,-151.0,0.00012229,2]
[400900159,1767858471223,-151.0,0.00012229,2]
[400900160,1767858471298,-151.0,0.00012229,2]
[400900161,1767858471375,-151.0,0.00012229,2]
[400900162,1767858471451,-151.0,0.00012229,2]
[400900163,1767858471528,-151.0,0.00012229,2]
[400900164,1767858471616,-151.0,0.00012229,2]
[400900165,1767858471695,-151.0,0.00012229,2]
[400900166,1767858481698,-195.0,0.00012229,2]
[400900167,1767858485160,-162.30454206,0.00012135,2]
[400900168,1767858485239,-150.0,0.00012228,2]
[400900169,1767858498390,-1200.0,0.00012228,2]
[400900170,1767858500588,-2588.74399394,0.00012229,2]
[400900171,1767858510386,-10000.01,0.00012229,2]
[400900172,1767858544130,-300.0,0.00012128,2]
[400900173,1767858547121,222.56518349,0.00012129,2]
[400900174,1767858547401,-428.14258391,0.00012129,2]
[400900175,1767858549693,-253.80200534,0.00012129,2]
[400900176,1767858551233,-253.76565688,0.00012129,2]
[400900177,1767858553972,-282.95311982,0.00012129,2]
[400900178,1767858558044,-417.74688018,0.00012129,2]
[400900179,1767858561915,-350.0,0.00012129,2]
[400900180,1767858566088,-569.43,0.00012129,2]
[400900181,1767858601352,300.0,0.00012128,2]
[400900182,1767858601545,1200.0,0.00012128,2]
[400900183,1767858603851,249.0,0.00012129,2]
[400900184,1767858625165,162.30454205,0.00012029,2]
[400900191,1767858631861,-1199.16049217,0.00012129,2]
[400900192,1767858631903,-559.2491887,0.00012129,2]
[400900193,1767858631914,-675.06,0.00012129,2]
[400900194,1767858631944,-544.02,0.00012129,2]
[400900195,1767858631955,-437.436765,0.00012129,2]
[400900196,1767858632069,-9044.75461084,0.00012129,2]
[400900197,1767858632080,-1171.15387376,0.00012129,2]
[400900198,1767858632092,-434.30423461,0.00012129,2]
[400900199,1767858632102,-1707.54897056,0.00012129,2]
[400900200,1767858632113,-9142.74451606,0.00012129,2]
[400900202,1767858638100,-972528.72710217,0.00012129,2]
[400900203,1767858638110,-1216.7956,0.00012129,2]
[400900204,1767858638119,-195.0,0.00012178,2]
[400900205,1767858638129,-755.93468828,0.00012228,2]
[400900206,1767858638138,-500.0,0.00012228,2]
[400900207,1767858638147,-500.0,0.00012228,2]
[400900208,1767858638157,-406.41025853,0.00012228,2]
[400900209,1767858638166,-500.0,0.00012228,2]
[400900210,1767858638176,-1000.0,0.00012229,2]
[400900211,1767858638185,-193.0,0.00012229,2]
[400900212,1767858638195,-250.0,0.00012229,2]
[400900213,1767858638204,-300.0,0.00012229,2]
[400900214,1767858638213,-164.04,0.0001223,2]
[400900215,1767858638223,-250.0,0.0001223,2]
[400900216,1767858638233,-300.0,0.00012231,2]
[400900217,1767858638243,-999.99,0.00012235,2]
[400900218,1767858638253,-5884.67,0.00012235,2]
[400900219,1767858638263,-150.99,0.00012235,2]
[400900220,1767858638273,-84023.7,0.00012235,2]
[400900221,1767858638283,-2621.34,0.00012235,2]
[400900222,1767858638292,-1465.64,0.00012235,2]
[400900223,1767858638302,-337.42,0.00012235,2]
[400900224,1767858638311,-299.99,0.00012235,2]
[400900225,1767858638320,-2095.37,0.00012235,2]
[400900226,1767858638330,-5708.28,0.00012241,2]
[400900227,1767858638340,-1562.49,0.00012271,2]
[400900228,1767858638349,-8882.54,0.00012271,2]
[400900229,1767858638359,-9999.99,0.00012271,2]
[400900230,1767858638368,-9999.99,0.00012271,2]
[400900231,1767858638378,-1000.0,0.00012372,2]
[400900232,1767858638387,-150.99,0.00012372,2]
[400900233,1767858638396,-9999.99,0.00012372,2]
[400900234,1767858638406,-7905.49,0.00012372,2]
[400900235,1767858638418,-280.58,0.00012393,2]
[400900236,1767858638428,-1000.0,0.00012422,2]
[400900237,1767858638437,-1000.0,0.00012428,2]
[400900238,1767858638448,-442.37987968,0.00012468,2]
[400900239,1767858638463,-162.30454205,0.00012493,2]
[400900240,1767858638472,-150.0,0.00012573,2]
[400900242,1767858638482,-1411.4358853,0.00012576,2]
[400900244,1767858638493,-254461.77472312,0.00012586,2]
[400900246,1767858638503,-18841.29,0.00012593,2]
[400900248,1767858638513,-696.21,0.00012669,2]
[400900250,1767858638523,-1100.0,0.00012688,2]
[400900252,1767858638533,-1000.0,0.0001272,2]
[400900254,1767858638543,-150.0,0.00012723,2]
[400900256,1767858638553,-1000.0,0.0001276,2]
[400900258,1767858638563,-200.589792,0.00012767,2]
[400900260,1767858638572,-15751.68873368,0.0001277,2]
[400900262,1767858638583,-3956.53,0.00012778,2]
[400900264,1767858638593,-166.66,0.00012801,2]
[400900266,1767858638602,-150.0,0.0001285,2]
[400900268,1767858638612,-203.41974767,0.0001285,2]
[400900271,1767858638622,-153.19668317,0.0001285,2]
[400900273,1767858638632,-500.0,0.0001285,2]
[400900275,1767858638642,-500.0,0.0001285,2]
[400900277,1767858638651,-150.0,0.0001285,2]
[400900279,1767858638661,-500.0,0.0001285,2]
[400900281,1767858638671,-500.0,0.0001285,2]
[400900284,1767858638680,-150.0,0.00012905,2]
[400900286,1767858638690,-500.0,0.00012905,2]
[400900288,1767858638699,-500.0,0.00012905,2]
[400900290,1767858638709,-500.0,0.00012905,2]
[400900292,1767858638719,-500.0,0.00012905,2]
[400900294,1767858638729,-222.56518343,0.00012953,2]
[400900296,1767858638738,-150.0,0.0001296,2]
[400900298,1767858638749,-500.0,0.0001296,2]
[400900300,1767858638759,-500.0,0.0001296,2]
[400900302,1767858638772,-500.0,0.0001296,2]
[400900305,1767858638785,-500.0,0.0001296,2]
[400900307,1767858638795,-755.75,0.00012986,2]
[400900309,1767858638805,-1000.0,0.00013004,2]
[400900311,1767858638814,-500.0,0.00013014,2]
[400900313,1767858638823,-500.0,0.00013014,2]
[400900315,1767858638834,-500.0,0.00013014,2]
[400900317,1767858638843,-500.0,0.00013014,2]
[400900319,1767858638853,-607.94461237,0.00013022,2]
[400900321,1767858638863,-500.0,0.00013069,2]
[400900323,1767858638872,-500.0,0.00013069,2]
[400900325,1767858638882,-216.31193931,0.00013069,2]
[400900327,1767858638891,-500.0,0.00013069,2]
[400900329,1767858638902,-219.97512683,0.00013124,2]
[400900331,1767858638911,-500.0,0.00013124,2]
[400900333,1767858638920,-500.0,0.00013124,2]
[400900336,1767858638930,-150.0,0.00013147,2]
[400900338,1767858638940,-233.66248833,0.00013147,2]
[400900340,1767858638950,-500.0,0.00013147,2]
[400900342,1767858638959,-150.0,0.00013147,2]
[400900344,1767858638973,-500.0,0.00013147,2]
[400900346,1767858638984,-150.0,0.00013147,2]
[400900348,1767858638994,-150.0,0.00013147,2]
[400900350,1767858639004,-150.0,0.00013147,2]
[400900352,1767858639014,-150.0,0.00013147,2]
[400900355,1767858639025,-500.0,0.00013147,2]
[400900357,1767858639035,-150.0,0.00013147,2]
[400900359,1767858639044,-150.0,0.00013147,2]
[400900361,1767858639055,-150.49525617,0.00013147,2]
[400900363,1767858639065,-150.0,0.00013147,2]
[400900365,1767858639075,-150.0,0.00013147,2]
[400900367,1767858639086,-150.0,0.00013147,2]
[400900369,1767858639095,-500.0,0.00013147,2]
[400900371,1767858639105,-288.61019467,0.00013147,2]
[400900373,1767858639115,-150.0,0.00013147,2]
[400900375,1767858639125,-1734.13,0.00013147,2]
[400900377,1767858639136,-500.0,0.00013147,2]
[400900379,1767858639146,-600.0,0.00013171,2]
[400900381,1767858639160,-240.4,0.00013171,2]
[400900383,1767858639174,-500.0,0.00013179,2]
[400900386,1767858639185,-500.0,0.00013179,2]
[400900388,1767858639196,-150.0,0.00013202,2]
[400900390,1767858639205,-500.0,0.00013202,2]
[400900392,1767858639216,-150.0,0.00013202,2]
[400900394,1767858639226,-500.0,0.00013202,2]
[400900396,1767858639236,-150.0,0.00013202,2]
[400900398,1767858639246,-150.0,0.00013202,2]
[400900400,1767858639257,-150.0,0.00013202,2]
[400900402,1767858639267,-217.19962447,0.00013202,2]
[400900404,1767858639282,-580.07664263,0.00013202,2]
[400900406,1767858639292,-150.0,0.00013202,2]
[400900408,1767858639303,-150.0,0.00013202,2]
[400900411,1767858639313,-231.03492311,0.00013202,2]
[400900413,1767858639323,-150.0,0.00013202,2]
[400900415,1767858639334,-500.0,0.00013202,2]
[400900417,1767858639345,-150.0,0.00013202,2]
[400900419,1767858639355,-184.06920116,0.00013202,2]
[400900421,1767858639368,-360.97,0.00013204,2]
[400900423,1767858639378,-166.66,0.00013224,2]
[400900425,1767858639388,-500.0,0.00013234,2]
[400900427,1767858639398,-500.0,0.00013234,2]
[400900429,1767858639408,-200.0,0.00013257,2]
[400900431,1767858639421,-500.0,0.00013257,2]
[400900433,1767858639431,-424.51861347,0.00013257,2]
[400900435,1767858639441,-150.0,0.00013257,2]
[400900437,1767858639450,-180.41152158,0.00013257,2]
[400900439,1767858639461,-152.76998294,0.00013257,2]
[400900441,1767858639472,-200.88287597,0.00013257,2]
[400900444,1767858639482,-178.40260868,0.00013257,2]
[400900446,1767858639495,-150.0,0.00013257,2]
[400900448,1767858639505,-500.0,0.00013257,2]
[400900450,1767858639515,-206.22263087,0.00013257,2]
[400900452,1767858639526,-500.0,0.00013288,2]
[400900454,1767858639536,-500.0,0.00013288,2]
[400900456,1767858639547,-245.04207158,0.00013311,2]
[400900458,1767858639557,-174.74090706,0.00013311,2]
[400900460,1767858639567,-150.0,0.00013311,2]
[400900463,1767858639580,-500.0,0.00013311,2]
[400900465,1767858639590,-420.0,0.00013312,2]
[400900467,1767858639600,-255.0,0.00013316,2]
[400900469,1767858639610,-195.0,0.00013341,2]
[400900471,1767858639621,-1680.0,0.00013341,2]
[400900473,1767858639631,-195.0,0.00013342,2]
[400900475,1767858639641,-500.0,0.00013343,2]
[400900477,1767858639653,-500.0,0.00013343,2]
[400900479,1767858639663,-1100.0,0.00013356,2]
[400900481,1767858639673,-150.0,0.00013366,2]
[400900483,1767858639683,-500.0,0.00013366,2]
[400900485,1767858639693,-696.21,0.00013373,2]
[400900487,1767858639703,-500.0,0.00013398,2]
[400900489,1767858639713,-500.0,0.00013398,2]
[400900492,1767858639724,-15751.68873368,0.00013411,2]
[400900494,1767858639740,-189.0183163,0.00013421,2]
[400900496,1767858639750,-500.0,0.00013421,2]
[400900498,1767858639760,-1680.0,0.00013421,2]
[400900500,1767858639770,-1734.13,0.00013421,2]
[400900502,1767858639780,-500.0,0.00013421,2]
[400900504,1767858639790,-1173.0,0.00013424,2]
[400900506,1767858639800,-500.0,0.00013424,2]
[400900508,1767858639810,-222.12982038,0.00013424,2]
[400900510,1767858639820,-500.0,0.00013424,2]
[400900512,1767858639830,-500.0,0.00013424,2]
[400900514,1767858639839,-500.0,0.00013424,2]
[400900516,1767858639848,-150.0,0.00013424,2]
[400900518,1767858639858,-164.77040348,0.00013424,2]
[400900520,1767858639868,-150.0,0.00013424,2]
[400900522,1767858639878,-303.08526023,0.00013452,2]
[400900524,1767858639888,-195.0,0.00013452,2]
[400900527,1767858639897,-326.27279092,0.00013452,2]
[400900529,1767858639907,-300.0,0.00013452,2]
[400900531,1767858639917,-250.0,0.00013452,2]
[400900533,1767858639926,-193.0,0.00013452,2]
[400900535,1767858639936,-195.0,0.00013452,2]
[400900537,1767858639946,-500.0,0.00013453,2]
[400900540,1767858639964,-500.0,0.00013453,2]
[400900542,1767858639975,-500.0,0.00013476,2]
[400900544,1767858639985,-1173.0,0.00013479,2]
[400900546,1767858639995,-500.0,0.00013479,2]
[400900548,1767858640004,-500.0,0.00013479,2]
[400900550,1767858640014,-500.0,0.00013479,2]
[400900552,1767858640023,-500.0,0.00013479,2]
[400900554,1767858640033,-150.0,0.00013479,2]
[400900557,1767858640043,-211.64498178,0.00013479,2]
[400900559,1767858640053,-500.0,0.00013508,2]
[400900561,1767858640063,-500.0,0.00013508,2]
[400900563,1767858640072,-151.0,0.00013528,2]
[400900565,1767858640082,-2000.0,0.00013528,2]
[400900567,1767858640091,-1043.35394918,0.00013528,2]
[400900569,1767858640101,-1500.0,0.00013528,2]
[400900571,1767858640111,-2000.0,0.00013528,2]
[400900573,1767858640121,-270.73180541,0.00013528,2]
[400900575,1767858640131,-1500.0,0.00013528,2]
[400900577,1767858640140,-2000.0,0.00013528,2]
[400900579,1767858640150,-1500.0,0.00013528,2]
[400900581,1767858640160,-2000.0,0.00013528,2]
[400900583,1767858640169,-1500.0,0.00013528,2]
[400900585,1767858640180,-2000.0,0.00013528,2]
[400900587,1767858640190,-1500.0,0.00013528,2]
[400900590,1767858640200,-151.66241854,0.00013528,2]
[400900592,1767858640209,-2000.0,0.00013528,2]
[400900594,1767858640219,-1500.0,0.00013528,2]
[400900596,1767858640228,-2000.0,0.00013528,2]
[400900598,1767858640238,-1500.0,0.00013528,2]
[400900600,1767858640247,-1500.0,0.00013528,2]
[400900602,1767858640257,-151.0,0.00013528,2]
[400900604,1767858640267,-574.12855637,0.00013528,2]
[400900643,1767858640739,-2000.0,0.00013528,2]
[400900649,1767858640787,-1500.0,0.00013528,2]
[400900651,1767858640796,-2000.0,0.00013528,2]
[400900653,1767858640806,-1500.0,0.00013528,2]
[400900655,1767858640814,-2000.0,0.00013528,2]
[400900657,1767858640823,-1500.0,0.00013528,2]
[400900659,1767858640832,-578.20924308,0.00013528,2]
[400900661,1767858640841,-2000.0,0.00013528,2]
[400900663,1767858640850,-500.0,0.00013528,2]
[400900665,1767858640859,-500.0,0.00013528,2]
[400900667,1767858640868,-500.0,0.00013528,2]
[400900669,1767858640877,-500.0,0.00013528,2]
[400900671,1767858640887,-500.0,0.00013528,2]
[400900673,1767858640896,-500.0,0.00013528,2]
[400900675,1767858640905,-500.0,0.00013528,2]
[400900677,1767858640914,-500.0,0.00013528,2]
[400900679,1767858640923,-500.0,0.00013528,2]
[400900681,1767858640932,-498.61515312,0.00013528,2]
[400900683,1767858640941,-500.0,0.00013528,2]
[400900685,1767858640950,-500.0,0.00013528,2]
[400900687,1767858640959,-500.0,0.00013528,2]
[400900689,1767858640971,-500.0,0.00013528,2]
[400900691,1767858640980,-500.0,0.00013528,2]
[400900693,1767858640989,-500.0,0.00013528,2]
[400900695,1767858640998,-500.0,0.00013528,2]
[400900697,1767858641008,-500.0,0.00013528,2]
[400900699,1767858641017,-500.0,0.00013528,2]
[400900701,1767858641027,-500.0,0.00013528,2]
[400900704,1767858641036,-500.0,0.00013528,2]
[400900706,1767858641046,-500.0,0.00013528,2]
[400900707,1767858641056,-500.0,0.00013528,2]
[400900710,1767858641065,-500.0,0.00013528,2]
[400900711,1767858641074,-500.0,0.00013528,2]
[400900714,1767858641084,-500.0,0.00013528,2]
[400900716,1767858641093,-500.0,0.00013528,2]
[400900717,1767858641102,-500.0,0.00013528,2]
[400900719,1767858641111,-500.0,0.00013528,2]
[400900722,1767858641120,-500.0,0.00013528,2]
[400900723,1767858641130,-169.1378307,0.00013528,2]
[400900726,1767858641140,-500.0,0.00013528,2]
[400900727,1767858641149,-500.0,0.00013528,2]
[400900730,1767858641160,-500.0,0.00013528,2]
[400900732,1767858641170,-500.0,0.00013528,2]
[400900734,1767858641179,-500.0,0.00013528,2]
[400900736,1767858641189,-500.0,0.00013528,2]
[400900738,1767858641198,-500.0,0.00013528,2]
[400900740,1767858641208,-500.0,0.00013528,2]
[400900742,1767858641217,-500.0,0.00013528,2]
[400900744,1767858641227,-322.6107,0.00013528,2]
[400900746,1767858641236,-500.0,0.00013528,2]
[400900748,1767858641245,-500.0,0.00013528,2]
[400900750,1767858641254,-500.0,0.00013528,2]
[400900752,1767858641263,-500.0,0.00013528,2]
[400900754,1767858641273,-500.0,0.00013528,2]
[400900756,1767858641282,-500.0,0.00013528,2]
[400900758,1767858641292,-500.0,0.00013528,2]
[400900760,1767858641301,-500.0,0.00013528,2]
[400900762,1767858641310,-622.14655061,0.00013528,2]
[400900764,1767858641319,-620.0,0.00013528,2]
[400900766,1767858641329,-209.40437684,0.00013528,2]
[400900768,1767858641339,-500.0,0.00013531,2]
[400900770,1767858641348,-1173.0,0.00013534,2]
[400900772,1767858641358,-482.10117033,0.00013534,2]
[400900774,1767858641367,-500.0,0.00013534,2]
[400900776,1767858641376,-500.0,0.00013534,2]
[400900778,1767858641385,-500.0,0.00013534,2]
[400900780,1767858641394,-221.38436778,0.00013534,2]
[400900782,1767858641404,-500.0,0.00013562,2]
[400900784,1767858641413,-500.0,0.00013562,2]
[400900787,1767858641427,-500.0,0.00013585,2]
[400900789,1767858641437,-1173.0,0.00013588,2]
[400900791,1767858641446,-500.0,0.00013588,2]
[400900793,1767858641455,-500.0,0.00013588,2]
[400900795,1767858641466,-500.0,0.00013588,2]
[400900796,1767858641475,-500.0,0.00013617,2]
[400900799,1767858641485,-236.20445804,0.00013617,2]
[400900801,1767858641497,-500.0,0.0001364,2]
[400900803,1767858641506,-1173.0,0.00013643,2]
[400900804,1767858641515,-500.0,0.00013643,2]
[400900807,1767858641526,-500.0,0.00013643,2]
[400900808,1767858641535,-231.23799714,0.00013643,2]
[400900811,1767858641544,-166.66,0.00013647,2]
[400900813,1767858641554,-1000.0,0.00013647,2]
[400900816,1767858641574,-440.06247596,0.00013672,2]
[400900818,1767858641585,-500.0,0.00013695,2]
[400900820,1767858641595,-1734.13,0.00013695,2]
[400900822,1767858641604,-457.10042703,0.00013695,2]
[400900824,1767858641614,-1173.0,0.00013698,2]
[400900826,1767858641623,-500.0,0.00013698,2]
[400900828,1767858641632,-500.0,0.00013698,2]
[400900830,1767858641643,-500.0,0.00013698,2]
[400900832,1767858641652,-500.0,0.00013698,2]
[400900834,1767858641661,-198.43935064,0.00013698,2]
[400900836,1767858641671,-500.0,0.00013698,2]
[400900838,1767858641680,-500.0,0.00013698,2]
[400900840,1767858641690,-500.0,0.00013698,2]
[400900842,1767858641700,-500.0,0.00013698,2]
[400900844,1767858641710,-410.25491874,0.00013698,2]
[400900846,1767858641719,-500.0,0.00013698,2]
[400900848,1767858641728,-500.0,0.00013698,2]
[400900850,1767858641738,-500.0,0.00013698,2]
[400900853,1767858641748,-500.0,0.00013698,2]
[400900855,1767858641758,-500.0,0.00013698,2]
[400900857,1767858641768,-500.0,0.00013698,2]
[400900859,1767858641778,-500.0,0.00013698,2]
[400900861,1767858641788,-500.0,0.00013698,2]
[400900863,1767858641797,-500.0,0.00013698,2]
[400900865,1767858641807,-500.0,0.00013698,2]
[400900867,1767858641817,-500.0,0.00013698,2]
[400900869,1767858641826,-500.0,0.00013698,2]
[400900871,1767858641835,-500.0,0.00013698,2]
[400900873,1767858641845,-500.0,0.00013698,2]
[400900875,1767858641855,-500.0,0.00013698,2]
[400900877,1767858641864,-500.0,0.00013698,2]
[400900879,1767858641874,-500.0,0.00013698,2]
[400900881,1767858641883,-211.60955392,0.00013698,2]
[400900883,1767858641893,-500.0,0.00013698,2]
[400900885,1767858641903,-500.0,0.00013698,2]
[400900887,1767858641913,-184.55624416,0.00013698,2]
[400900889,1767858641923,-500.0,0.00013698,2]
[400900891,1767858641933,-3895.88,0.00013699,2]
[400900893,1767858641942,-1000.0,0.0001371,2]
[400900895,1767858641952,-209.91190666,0.0001375,2]
[400900897,1767858641961,-1173.0,0.00013753,2]
[400900899,1767858641971,-500.0,0.00013753,2]
[400900901,1767858641981,-500.0,0.00013753,2]